bitfinex/quotes_BTCUSD_20260215
["timestamp","ask_amount","ask_price","bid_price","bid_amount"]
[1771144221258,0.07080331,70619.0,70611.0,0.00012962]
[1771144222130,0.49740949,70621.0,70611.0,0.00012962]
[1771144222336,0.02300905,70621.0,70611.0,0.00012962]
[1771144222537,0.0001553,70622.0,70611.0,0.00012962]
[1771144222970,0.0001553,70622.0,70610.0,4e-05]
[1771144223193,0.00028535,70622.0,70610.0,4e-05]
[1771144223404,4e-05,70630.0,70610.0,4e-05]
[1771144223405,4e-05,70630.0,70618.0,0.02374777]
[1771144223604,4e-05,70630.0,70622.0,0.02374777]
[1771144224043,4e-05,70630.0,70622.0,0.09454709]
[1771144224216,4e-05,70630.0,70622.0,0.02374777]
[1771144224875,4e-05,70630.0,70620.0,0.07080133]
[1771144225413,4e-05,70630.0,70621.0,0.07080035]
[1771144225620,4e-05,70630.0,70614.0,0.23735322]
[1771144225971,0.0002,70632.0,70614.0,0.23735322]
[1771144225972,0.0002,70632.0,70625.0,0.02374777]
[1771144227328,0.0002,70632.0,70625.0,0.07079633]
[1771144227529,0.07102218,70640.0,70620.0,4e-05]
[1771144227530,0.02300905,70653.0,70643.0,0.07077746]
[1771144227730,0.02300905,70653.0,70622.0,0.42477876]
[1771144227731,0.09377761,70653.0,70638.0,0.07078147]
[1771144227940,0.09377761,70653.0,70640.0,0.07078135]
[1771144228142,0.09377761,70653.0,70641.0,0.02374777]
[1771144228317,0.02300905,70653.0,70642.0,0.07077904]
[1771144228573,0.07076981,70652.0,70642.0,0.02374777]
[1771144228775,0.000336,70645.0,70639.0,0.07078171]
[1771144228991,0.000336,70645.0,70637.0,0.0945312]
[1771144229191,0.02300905,70653.0,70643.0,0.07077778]
[1771144229320,0.0002059,70656.0,70644.0,0.07077542]
[1771144229515,0.07077013,70652.0,70644.0,0.0001301]
[1771144230102,0.07077013,70652.0,70633.0,0.09068]
[1771144230103,0.02300905,70644.0,70601.0,0.01]
[1771144230312,0.02300905,70644.0,70616.0,0.02395367]
[1771144230313,0.07079073,70631.0,70616.0,0.02395367]
[1771144230707,0.02300905,70632.0,70617.0,0.07080368]
[1771144230708,0.07079154,70630.0,70617.0,0.07080368]
[1771144230872,0.07079154,70630.0,70616.0,0.0002059]
[1771144230873,0.22256691,70629.0,70616.0,0.0002059]
[1771144231067,0.02300905,70620.0,70616.0,0.0002059]
[1771144231729,1e-08,70621.0,70616.0,0.0002059]
[1771144232068,0.01300906,70625.0,70616.0,0.0002059]
[1771144232276,4e-05,70630.0,70616.0,0.0002059]
[1771144232702,0.54523245,70630.0,70616.0,0.0002059]
[1771144232912,4e-05,70630.0,70617.0,0.02374777]
[1771144233112,0.22256691,70628.0,70616.0,0.0002059]
[1771144233387,4e-05,70630.0,70616.0,0.02395367]
[1771144233590,4e-05,70630.0,70619.0,0.07080195]
[1771144233773,4e-05,70630.0,70616.0,0.02395367]
[1771144233774,4e-05,70630.0,70617.0,0.07080448]
[1771144234150,4e-05,70630.0,70616.0,0.0002059]
[1771144234356,4e-05,70630.0,70600.0,0.000142]
[1771144234357,0.07080859,70613.0,70605.0,0.0002059]
[1771144234525,4e-05,70630.0,70605.0,0.00063956]
[1771144234526,0.0708082,70614.0,70605.0,0.00063956]
[1771144234728,0.02300905,70613.0,70605.0,0.00063956]
[1771144235171,0.07080949,70612.0,70605.0,0.00063956]
[1771144235344,0.07080949,70612.0,70605.0,0.00043366]
[1771144235552,0.07080949,70612.0,70605.0,0.00066976]
[1771144236209,0.02300905,70613.0,70595.0,0.00022]
[1771144236210,0.28324321,70611.0,70595.0,0.00022]
[1771144236359,0.02300905,70609.0,70595.0,0.00022]
[1771144236568,0.07081646,70606.0,70595.0,0.00022]
[1771144237224,0.07081498,70607.0,70595.0,0.00022]
[1771144237369,0.07081642,70606.0,70595.0,0.00022]
[1771144237828,0.00043339,70611.0,70595.0,0.00022]
[1771144237994,0.00043339,70611.0,70598.0,0.09457104]
[1771144238170,4e-05,70610.0,70598.0,0.07082327]
[1771144238378,4e-05,70610.0,70599.0,0.02374777]
[1771144238730,4e-05,70610.0,70599.0,0.02345116]
[1771144238934,0.0708143,70608.0,70599.0,0.02345116]
[1771144239174,0.07081428,70608.0,70599.0,0.02345116]
[1771144239295,0.07081514,70607.0,70597.0,0.0003304]
[1771144239500,0.02300905,70608.0,70597.0,0.0003304]
[1771144239696,0.47444044,70610.0,70597.0,0.02407817]
[1771144240000,0.0708515,70610.0,70598.0,0.00022]
[1771144240201,0.07081269,70609.0,70598.0,0.00022]
[1771144240904,0.07081366,70608.0,70598.0,0.00022]
[1771144241554,0.07081366,70608.0,70592.0,0.25513194]
[1771144241790,0.07081366,70608.0,70594.0,0.09457449]
[1771144242348,0.02411349,70610.0,70594.0,0.02374777]
[1771144242563,0.07081662,70605.0,70594.0,0.02374777]
[1771144242996,0.07081662,70605.0,70589.0,0.40981161]
[1771144242997,0.24239337,70594.0,70566.0,0.0384]
[1771144243149,0.24239337,70594.0,70561.0,0.0003304]
[1771144243150,0.02475898,70587.0,70571.0,0.07085046]
[1771144243350,0.02471898,70587.0,70569.0,0.21368784]
[1771144243576,0.02471898,70587.0,70573.0,0.23593255]
[1771144243784,0.02475898,70592.0,70577.0,0.07084445]
[1771144243993,0.02475898,70592.0,70578.0,0.07084275]
[1771144244426,0.07083076,70591.0,70577.0,0.02488442]
[1771144244645,0.02475898,70591.0,70577.0,0.02488442]
[1771144244856,0.02475898,70591.0,70578.0,0.07084324]
[1771144245075,0.09558964,70591.0,70577.0,0.02488442]
[1771144245505,0.07083363,70588.0,70574.0,0.07084746]
[1771144245718,0.02475898,70590.0,70573.0,0.02224471]
[1771144245922,0.28750728,70589.0,70573.0,0.02224471]
[1771144246143,0.02475898,70587.0,70573.0,0.09309235]
[1771144246380,0.02475898,70587.0,70574.0,0.07084713]
[1771144246587,0.02475898,70578.0,70565.0,0.07085652]
[1771144246846,0.02475898,70578.0,70566.0,0.0708552]
[1771144247036,0.21667469,70588.0,70566.0,0.02488442]
[1771144247249,0.81316044,70590.0,70567.0,0.07085464]
[1771144247250,0.02475898,70583.0,70567.0,0.07085464]
[1771144247474,0.02475898,70583.0,70566.0,0.02488442]
[1771144247684,0.02475898,70579.0,70566.0,0.07085562]
[1771144247881,0.02475898,70579.0,70567.0,0.09309973]
[1771144248113,0.02475898,70579.0,70571.0,0.00022]
[1771144250173,0.07083609,70586.0,70572.0,0.02224524]
[1771144250466,0.02475898,70589.0,70572.0,0.02224524]
[1771144250670,0.07083441,70588.0,70572.0,0.08653056]
[1771144250966,0.07083669,70585.0,70572.0,0.08653056]
[1771144251268,0.09559567,70585.0,70572.0,0.08653056]
[1771144251490,0.07083393,70588.0,70572.0,0.2293697]
[1771144251697,0.33876,70590.0,70572.0,0.2293697]
[1771144251698,0.33876,70590.0,70575.0,0.07084629]
[1771144251878,0.40959162,70590.0,70577.0,0.07084452]
[1771144252107,0.00043339,70592.0,70575.0,0.28338627]
[1771144252283,0.00043339,70592.0,70584.0,0.07083734]
[1771144252484,0.00043339,70592.0,70583.0,0.07083857]
[1771144252695,0.00043339,70592.0,70583.0,0.09572299]
[1771144252825,0.00043339,70592.0,70584.0,0.07083758]
[1771144253238,4e-05,70590.0,70585.0,0.01568186]
[1771144253483,4e-05,70590.0,70586.0,0.02488442]
[1771144253730,4e-05,70600.0,70584.0,0.29902944]
[1771144253932,4e-05,70600.0,70588.0,0.02488442]
[1771144254104,4e-05,70600.0,70593.0,0.09571213]
[1771144254254,4e-05,70600.0,70593.0,0.02488442]
[1771144254911,1.00004,70600.0,70593.0,0.02488442]
[1771144255116,4e-05,70610.0,70594.0,0.01568186]
[1771144255292,4e-05,70610.0,70599.0,0.02488442]
[1771144255501,4e-05,70610.0,70599.0,0.01820104]
[1771144255904,4e-05,70610.0,70603.0,0.07081815]
[1771144256104,4e-05,70610.0,70601.0,0.02488442]
[1771144256324,4e-05,70610.0,70602.0,0.01568186]
[1771144256514,4e-05,70610.0,70607.0,0.07081363]
[1771144256672,0.07084149,70620.0,70607.0,0.02488442]
[1771144256882,4e-05,70620.0,70608.0,0.01544186]
[1771144257086,4e-05,70620.0,70608.0,0.04014945]
[1771144257344,4e-05,70620.0,70608.0,0.08607831]
[1771144257646,4e-05,70620.0,70609.0,0.02488442]
[1771144257847,4e-05,70620.0,70609.0,0.09569676]
[1771144258257,4e-05,70620.0,70609.0,0.02488442]
[1771144259464,4e-05,70630.0,70615.0,0.02488442]
[1771144259692,0.2874691,70628.0,70615.0,0.01949528]
[1771144259940,0.2874691,70628.0,70616.0,0.01526503]
[1771144260365,4e-05,70630.0,70610.0,4e-05]
[1771144260576,0.21667469,70619.0,70600.0,4e-05]
[1771144260864,0.21667469,70619.0,70601.0,0.07082016]
[1771144260865,0.24143367,70613.0,70601.0,0.07082016]
[1771144261287,0.31224225,70613.0,70600.0,4e-05]
[1771144261516,0.31224225,70613.0,70594.0,0.28330828]
[1771144261517,0.21667469,70609.0,70594.0,0.3388]
[1771144261729,0.21667469,70609.0,70586.0,0.21368784]
[1771144261730,0.21667469,70595.0,70580.0,4e-05]
[1771144261937,4e-05,70600.0,70574.0,0.02488442]
[1771144261938,0.02475898,70598.0,70574.0,0.02488442]
[1771144262162,0.21667469,70591.0,70580.0,0.07084157]
[1771144262377,0.21667469,70587.0,70574.0,0.02488442]
[1771144262603,0.24143367,70592.0,70578.0,0.07084347]
[1771144262828,0.07082472,70597.0,70580.0,0.47440044]
[1771144263030,0.00010428,70592.0,70581.0,0.02488442]
[1771144263236,0.00010428,70592.0,70581.0,0.09572461]
[1771144263661,0.00010428,70592.0,70581.0,0.02488442]
[1771144263870,0.00010428,70592.0,70578.0,0.07084278]
[1771144263871,0.21667469,70591.0,70578.0,0.07084278]
[1771144264296,0.21667469,70591.0,70574.0,0.07084721]
[1771144264520,0.21667469,70589.0,70575.0,0.07084574]
[1771144264726,0.07083653,70586.0,70571.0,0.09595452]
[1771144264935,0.28751122,70586.0,70572.0,0.07084874]
[1771144265558,0.07083667,70585.0,70572.0,0.07084874]
[1771144265792,0.28751119,70586.0,70572.0,0.07084874]
[1771144266021,0.07083733,70585.0,70571.0,0.02510442]
[1771144266243,0.21667469,70582.0,70571.0,0.02510442]
[1771144266475,0.21667469,70582.0,70571.0,0.00022]
[1771144266689,0.21667469,70580.0,70571.0,0.00022]
[1771144266902,0.07084451,70578.0,70571.0,0.00022]
[1771144267153,0.02475898,70582.0,70571.0,0.00022]
[1771144267154,0.28751628,70580.0,70571.0,0.00022]
[1771144267362,0.28751628,70580.0,70569.0,0.00022]
[1771144267363,0.07084653,70576.0,70569.0,0.00022]
[1771144267586,0.24143367,70576.0,70569.0,0.00022]
[1771144267795,0.24143367,70576.0,70558.0,0.11560442]
[1771144267796,0.21667469,70567.0,70550.0,0.02488442]
[1771144268017,0.21667469,70570.0,70548.0,0.023847]
[1771144268227,0.21667469,70570.0,70551.0,0.0708703]
[1771144268228,0.21667469,70563.0,70551.0,0.0708703]
[1771144268482,0.02475898,70566.0,70551.0,0.0708703]
[1771144268483,0.09561543,70566.0,70551.0,0.07087002]
[1771144268688,0.02475898,70566.0,70549.0,0.28455956]
[1771144268902,0.02475898,70566.0,70549.0,0.02488442]
[1771144269128,4e-05,70570.0,70552.0,0.21368784]
[1771144269352,4e-05,70570.0,70559.0,0.07086192]
[1771144269563,4e-05,70570.0,70563.0,0.00022]
[1771144269783,0.21667469,70569.0,70556.0,0.00022]
[1771144270005,4e-05,70570.0,70557.0,0.07086412]
[1771144270224,0.21671469,70570.0,70559.0,0.07086265]
[1771144270448,4e-05,70570.0,70563.0,0.07085857]
[1771144270660,0.21667469,70579.0,70561.0,0.02488442]
[1771144270877,0.21667469,70579.0,70563.0,0.02488442]
[1771144271091,4e-05,70580.0,70566.0,0.21368784]
[1771144271311,4e-05,70580.0,70567.0,0.02488442]
[1771144271540,0.0002,70589.0,70567.0,0.02488442]
[1771144271766,0.0002,70589.0,70573.0,0.02488442]
[1771144271997,0.0002,70589.0,70578.0,0.07084348]
[1771144272688,0.0002,70589.0,70578.0,0.07084357]
[1771144272898,0.0002,70589.0,70576.0,0.07084561]
[1771144273081,0.0002,70589.0,70580.0,0.0708414]
[1771144273308,0.0003301,70589.0,70579.0,0.07084236]
[1771144273530,0.0003301,70589.0,70574.0,0.02303048]
[1771144273756,0.0003301,70589.0,70580.0,0.07084155]
[1771144273999,0.2087767,70588.0,70571.0,0.0938801]
[1771144274223,0.2087767,70588.0,70581.0,0.07084052]
[1771144274452,0.0003301,70589.0,70583.0,0.07083829]
[1771144274681,0.0003301,70589.0,70580.0,0.07084159]
[1771144274909,0.0003301,70589.0,70581.0,0.07084044]
[1771144275359,0.0003301,70589.0,70578.0,0.07084175]
[1771144276650,0.0003301,70589.0,70579.0,0.0708426]
[1771144276864,0.0003301,70589.0,70580.0,0.07084143]
[1771144277076,0.0003301,70589.0,70581.0,0.07084059]
[1771144277321,0.0003301,70589.0,70580.0,0.07084122]
[1771144277553,0.0003301,70589.0,70582.0,0.07083893]
[1771144277765,0.2087767,70582.0,70570.0,4e-05]
[1771144277977,0.06,70583.0,70572.0,0.28339508]
[1771144277978,0.04802945,70583.0,70572.0,0.28339508]
[1771144278184,0.04802945,70583.0,70570.0,0.47475937]
[1771144278185,0.04802945,70583.0,70570.0,4e-05]
[1771144278389,0.04802945,70583.0,70579.0,0.07084172]
[1771144278564,0.04802945,70583.0,70578.0,0.07084344]
[1771144278761,0.0003301,70589.0,70578.0,0.07084344]
[1771144278946,0.0003301,70589.0,70571.0,0.07085063]
[1771144279170,0.0003301,70589.0,70579.0,0.07084168]
[1771144279366,0.0003301,70589.0,70578.0,0.07084342]
[1771144279565,0.0003301,70589.0,70570.0,4e-05]
[1771144279566,0.2087767,70587.0,70570.0,4e-05]
[1771144279937,0.23283071,70584.0,70573.0,0.07084861]
[1771144280357,0.23283071,70584.0,70574.0,0.07084757]
[1771144280786,0.2087767,70582.0,70570.0,4e-05]
[1771144280995,0.23283071,70578.0,70569.0,0.07085218]
[1771144281164,0.23283071,70578.0,70567.0,0.07085397]
[1771144281368,0.23283071,70578.0,70568.0,0.07085292]
[1771144281571,0.23283071,70578.0,70565.0,0.07085653]
[1771144282023,0.23283071,70578.0,70566.0,0.07085535]
[1771144282152,0.02405401,70577.0,70565.0,0.07085614]
[1771144282353,0.02405401,70576.0,70560.0,4e-05]
[1771144282563,0.07084932,70573.0,70561.0,0.07086065]
[1771144282805,0.23283071,70574.0,70560.0,4e-05]
[1771144283164,4e-05,70580.0,70560.0,4e-05]
[1771144283369,4e-05,70580.0,70562.0,0.01689137]
[1771144283670,0.02405401,70579.0,70566.0,0.07085395]
[1771144283846,0.07084662,70575.0,70562.0,0.07085775]
[1771144284048,0.23283071,70574.0,70562.0,0.07085775]
[1771144284256,0.23283071,70574.0,70563.0,0.07085851]
[1771144284470,0.23283071,70574.0,70564.0,0.07085729]
[1771144285010,0.23283071,70574.0,70563.0,0.07085848]
[1771144285774,0.07084862,70573.0,70560.0,0.47475937]
[1771144286079,4e-05,70580.0,70560.0,4e-05]
[1771144286080,0.02405401,70569.0,70560.0,4e-05]
[1771144286315,0.2087767,70564.0,70560.0,4e-05]
[1771144286532,0.23283071,70564.0,70560.0,4e-05]
[1771144286939,0.02405401,70564.0,70560.0,4e-05]
[1771144287608,0.02405401,70564.0,70560.0,0.00047339]
[1771144288012,0.02405401,70564.0,70548.0,0.114607]
[1771144288013,0.81359937,70570.0,70540.0,0.00022]
[1771144288182,0.02405401,70557.0,70544.0,0.07087765]
[1771144288394,0.02405401,70557.0,70540.0,0.00022]
[1771144288395,0.02405401,70560.0,70551.0,0.0708703]
[1771144288589,0.02405401,70560.0,70540.0,0.70487456]
[1771144288590,0.02405401,70560.0,70549.0,0.07087248]
[1771144288836,0.23283071,70560.0,70548.0,0.07087341]
[1771144288974,0.2087767,70558.0,70545.0,0.07087665]
[1771144289173,0.2087767,70554.0,70540.0,0.47493937]
[1771144289401,0.2087767,70554.0,70543.0,0.07087786]
[1771144289402,0.23283071,70554.0,70543.0,0.07087786]
[1771144289562,0.30369914,70554.0,70540.0,0.00022]
[1771144289758,0.0708695,70553.0,70540.0,0.07109985]
[1771144289982,0.30369914,70554.0,70540.0,0.07109985]
[1771144289983,0.30370026,70554.0,70540.0,0.07088098]
[1771144290187,0.30370026,70554.0,70538.0,0.00916247]
[1771144290188,0.02405401,70553.0,70552.0,0.00022]
[1771144290388,0.02405401,70555.0,70552.0,0.00022]
[1771144290587,0.09492167,70555.0,70552.0,0.00022]
[1771144290945,0.09492186,70554.0,70552.0,0.00022]
[1771144291129,0.02405401,70553.0,70552.0,0.00022]
[1771144291363,0.42313781,70632.0,70520.0,0.01562069]
[1771144291364,0.47471937,70562.0,70520.0,0.01562069]
[1771144291575,0.02405401,70558.0,70534.0,0.071007]
[1771144291805,0.33888,70561.0,70534.0,0.07100694]
[1771144291806,0.2087767,70554.0,70534.0,0.07100694]
[1771144292016,0.0708729,70549.0,70534.0,0.07100694]
[1771144292221,0.2087767,70546.0,70534.0,0.00012]
[1771144292455,0.02405401,70545.0,70534.0,0.00012]
[1771144292659,0.47475937,70570.0,70534.0,0.283669]
[1771144292862,0.02405401,70551.0,70534.0,0.00012]
[1771144293078,0.02405401,70551.0,70540.0,0.07088138]
[1771144293299,0.23283071,70544.0,70534.0,0.00012]
[1771144293504,0.07087643,70546.0,70534.0,0.00012]
[1771144293723,0.02405401,70544.0,70535.0,0.07088592]
[1771144294125,0.09492612,70550.0,70536.0,0.0708857]
[1771144294346,0.09492612,70550.0,70534.0,0.00012]
[1771144294347,0.02405401,70546.0,70534.0,0.00012]
[1771144294579,0.02405401,70546.0,70519.0,0.22993519]
[1771144294580,0.2087767,70540.0,70514.0,0.0259834]
[1771144294787,0.02405401,70539.0,70518.0,0.07090351]
[1771144295018,0.23283071,70534.0,70514.0,0.0259834]
[1771144295229,0.23283071,70534.0,70520.0,0.49034006]
[1771144295406,0.02405401,70534.0,70520.0,0.49034006]
[1771144295616,0.02405401,70533.0,70524.0,0.07089685]
[1771144295780,0.02405401,70533.0,70523.0,0.07089884]
[1771144296180,0.07088381,70538.0,70520.0,0.01562069]
[1771144296181,0.33888,70545.0,70520.0,0.01562069]
[1771144296388,0.2087767,70543.0,70520.0,0.01562069]
[1771144296584,0.2087767,70537.0,70520.0,0.01562069]
[1771144296781,0.07088797,70534.0,70521.0,0.00022]
[1771144297001,0.2087767,70536.0,70521.0,0.00022]
[1771144297210,0.07090086,70521.0,70514.0,0.0259834]
[1771144297420,0.47471937,70540.0,70514.0,0.0259834]
[1771144297421,0.02405401,70522.0,70514.0,0.0259834]
[1771144297646,0.2087767,70533.0,70514.0,0.0259834]
[1771144297864,0.2087767,70538.0,70524.0,0.07089773]
[1771144298077,0.2087767,70538.0,70526.0,0.07089583]
[1771144298285,4e-05,70530.0,70525.0,0.07089676]
[1771144298492,0.20921009,70538.0,70523.0,0.02303048]
[1771144298708,0.00043339,70538.0,70520.0,0.70469456]
[1771144298953,0.00043339,70538.0,70528.0,0.47471937]
[1771144299163,0.23283071,70552.0,70535.0,0.07088671]
[1771144299377,0.2087767,70547.0,70535.0,0.00012981]
[1771144299593,0.2087767,70542.0,70535.0,0.00012981]
[1771144299791,0.2087767,70549.0,70535.0,0.00012981]
[1771144300205,0.02405401,70549.0,70535.0,0.00012981]
[1771144300415,4e-05,70550.0,70538.0,0.07088367]
[1771144300664,4e-05,70550.0,70543.0,0.07087777]
[1771144301063,4e-05,70550.0,70540.0,0.5456009]
[1771144301285,4e-05,70550.0,70540.0,0.47471937]
[1771144301519,4e-05,70550.0,70541.0,0.28352215]
[1771144301744,4e-05,70550.0,70546.0,0.07087563]
[1771144301964,4e-05,70550.0,70544.0,0.07087691]
[1771144302139,4e-05,70550.0,70541.0,0.02303048]
[1771144302345,4e-05,70550.0,70545.0,0.07087593]
[1771144302573,4e-05,70550.0,70544.0,0.07087773]
[1771144302778,4e-05,70550.0,70541.0,0.02303048]
[1771144302986,4e-05,70550.0,70544.0,0.07087684]
[1771144303196,4e-05,70550.0,70545.0,0.07087673]
[1771144303412,4e-05,70550.0,70541.0,0.02303048]
[1771144303616,4e-05,70550.0,70545.0,0.07087611]
[1771144303828,4e-05,70550.0,70545.0,0.09529909]
[1771144304166,0.00024,70550.0,70545.0,0.07087611]
[1771144304369,0.00024,70550.0,70544.0,0.07087763]
[1771144304586,0.00024,70550.0,70545.0,0.07087648]
[1771144304985,0.00024,70550.0,70543.0,0.07087868]
[1771144305216,0.00024,70550.0,70541.0,0.0708805]
[1771144305637,0.00024,70550.0,70535.0,0.00012981]
[1771144305839,0.22098784,70547.0,70535.0,0.00012981]
[1771144306042,0.22098784,70547.0,70538.0,0.0708834]
[1771144306283,0.22098784,70547.0,70539.0,0.07088242]
[1771144306482,0.00024,70550.0,70539.0,0.07088193]
[1771144306683,0.00024,70550.0,70535.0,0.00012981]
[1771144306933,0.00024,70550.0,70540.0,0.47471937]
[1771144307085,0.00024,70550.0,70543.0,0.07087867]
[1771144307517,0.00024,70550.0,70535.0,0.00012981]
[1771144307518,0.22098784,70549.0,70535.0,0.00012981]
[1771144307720,0.22098784,70549.0,70538.0,0.07088283]
[1771144307874,0.22098784,70549.0,70535.0,0.00012981]
[1771144308074,0.22098784,70549.0,70537.0,0.07088476]
[1771144308341,0.22098784,70547.0,70535.0,0.00012981]
[1771144308838,0.22098784,70547.0,70540.0,0.07088122]
[1771144309108,0.22098784,70547.0,70538.0,0.07088323]
[1771144309317,0.00024,70550.0,70535.0,0.02455279]
[1771144309530,0.22098784,70549.0,70535.0,0.02455279]
[1771144309734,0.22098784,70549.0,70535.0,0.30809745]
[1771144309946,0.22098784,70549.0,70539.0,0.07088269]
[1771144310168,0.02493895,70550.0,70538.0,0.07088377]
[1771144310383,0.22098784,70547.0,70535.0,0.07101607]
[1771144310598,0.22098784,70545.0,70535.0,0.07101607]
[1771144311287,0.22098784,70545.0,70535.0,0.00012981]
[1771144312288,0.22098784,70545.0,70536.0,0.07088546]
[1771144312491,0.22098784,70545.0,70535.0,0.00012981]
[1771144312492,0.22098784,70545.0,70535.0,0.07101657]
[1771144312690,0.22098784,70545.0,70537.0,0.07088397]
[1771144312895,0.22098784,70545.0,70537.0,0.07088478]
[1771144313097,0.22098784,70545.0,70538.0,0.07088371]
[1771144313414,0.00024,70550.0,70535.0,0.00012981]
[1771144313619,0.00024,70550.0,70535.0,0.02455279]
[1771144313815,0.07111256,70550.0,70537.0,0.07088379]
[1771144314074,0.09581151,70550.0,70537.0,0.07088379]
[1771144314244,0.24568679,70549.0,70538.0,0.07088371]
[1771144314645,0.09557201,70549.0,70535.0,0.09543944]
[1771144314848,0.24568679,70548.0,70535.0,0.07101624]
[1771144315049,0.24568679,70548.0,70526.0,0.50646448]
[1771144315050,0.07089538,70527.0,70520.0,4e-05]
[1771144315256,0.00012993,70527.0,70520.0,4e-05]
[1771144315457,0.24577672,70527.0,70520.0,0.07094109]
[1771144316116,0.47475937,70540.0,70520.0,4e-05]
[1771144316321,0.24568679,70530.0,70521.0,0.00065339]
[1771144316938,0.24568679,70530.0,70529.0,0.00022]
[1771144317558,0.3165786,70530.0,70529.0,0.00022]
[1771144317740,0.3165786,70530.0,70518.0,0.07090325]
[1771144317741,0.07089646,70526.0,70513.0,0.00022]
[1771144317877,0.24568679,70525.0,70514.0,0.09689067]
[1771144318085,0.24568679,70525.0,70514.0,0.0259834]
[1771144318301,0.22098784,70515.0,70500.0,0.00012]
[1771144318513,0.02469895,70516.0,70500.0,0.02454298]
[1771144318940,0.02469895,70516.0,70484.0,0.42562515]
[1771144318941,0.22098784,70506.0,70497.0,0.01581939]
[1771144319154,0.02469895,70509.0,70497.0,0.01581939]
[1771144319372,0.24568679,70509.0,70497.0,0.01581939]
[1771144319584,0.07091844,70504.0,70497.0,0.01581939]
[1771144319802,0.0709214,70501.0,70489.0,0.070933]
[1771144320014,0.07092356,70499.0,70488.0,0.02758569]
[1771144320235,0.22098784,70500.0,70488.0,0.02758569]
[1771144320450,0.02469895,70502.0,70489.0,0.0709322]
[1771144320663,0.07092105,70501.0,70491.0,5.5e-05]
[1771144320871,0.00043366,70502.0,70491.0,5.5e-05]
[1771144321103,0.00043366,70502.0,70490.0,0.47471937]
[1771144321528,0.00043366,70502.0,70492.0,0.07092931]
[1771144321795,0.00043366,70502.0,70491.0,0.02442298]
[1771144322220,0.07092216,70500.0,70482.0,0.02442298]
[1771144322435,0.02469895,70496.0,70480.0,0.02811979]
[1771144322657,0.22098784,70499.0,70482.0,0.07094009]
[1771144322891,0.02469895,70499.0,70480.0,0.02811979]
[1771144323138,0.47471937,70500.0,70480.0,0.02811979]
[1771144323139,0.24568679,70488.0,70480.0,0.02811979]
[1771144323365,0.22098784,70486.0,70480.0,0.02811979]
[1771144323796,0.07093153,70491.0,70480.0,0.02811979]
[1771144324031,0.22098784,70489.0,70487.0,0.00022]
[1771144324238,0.24568679,70489.0,70480.0,0.02811979]
[1771144324448,0.24568679,70489.0,70480.0,0.02833979]
[1771144324666,0.09562881,70494.0,70480.0,0.02833979]
[1771144324914,0.22098784,70487.0,70480.0,0.02833979]
[1771144325180,0.24568679,70505.0,70484.0,0.02442298]
[1771144325332,0.24568679,70505.0,70488.0,0.07093307]
[1771144325333,0.07092196,70501.0,70488.0,0.07093307]
[1771144325594,0.47471937,70500.0,70484.0,0.02442298]
[1771144325804,0.24568679,70499.0,70480.0,0.02833979]
[1771144325994,0.22098784,70497.0,70488.0,0.07093359]
[1771144326436,0.07091956,70503.0,70484.0,0.28375032]
[1771144326437,0.22098784,70495.0,70484.0,0.28375032]
[1771144326637,0.02469895,70494.0,70484.0,0.28375032]
[1771144327054,0.22098784,70495.0,70480.0,0.3121042]
[1771144327264,0.22098784,70495.0,70481.0,0.0709411]
[1771144327414,0.22098784,70495.0,70480.0,0.3121042]
[1771144327415,0.22098784,70495.0,70490.0,0.07093181]
[1771144327616,0.72040616,70500.0,70490.0,0.07093181]
[1771144327823,0.24568679,70500.0,70490.0,0.07093181]
[1771144328178,0.00043366,70502.0,70486.0,0.28374248]
[1771144328357,0.00043366,70502.0,70488.0,0.02442298]
[1771144328687,0.00043366,70502.0,70493.0,0.07084825]
[1771144328857,0.00043366,70502.0,70494.0,0.07092761]
[1771144329216,0.00043366,70502.0,70496.0,0.07092519]
[1771144329397,0.00043366,70502.0,70488.0,0.2473053]
[1771144329398,0.00043366,70502.0,70489.0,0.02442298]
[1771144329626,0.00043366,70502.0,70494.0,0.07092703]
[1771144330090,0.00043366,70502.0,70495.0,0.07092701]
[1771144330301,0.00043366,70502.0,70494.0,0.07092703]
[1771144330302,0.00043366,70502.0,70496.0,0.0709259]
[1771144330513,4e-05,70510.0,70489.0,0.33896]
[1771144330753,4e-05,70510.0,70499.0,0.07092216]
[1771144330946,4e-05,70510.0,70500.0,0.07092129]
[1771144331162,0.02544,70503.0,70492.0,0.02442298]
[1771144331367,4e-05,70510.0,70491.0,0.02442298]
[1771144331574,4e-05,70510.0,70492.0,0.02442298]
[1771144331786,4e-05,70510.0,70502.0,0.0709192]
[1771144331933,4e-05,70510.0,70503.0,0.07091824]
[1771144332537,4e-05,70510.0,70502.0,0.07091972]
[1771144332752,4e-05,70520.0,70501.0,0.02442298]
[1771144333110,4e-05,70520.0,70511.0,0.07091009]
[1771144333326,4e-05,70520.0,70513.0,0.07090808]
[1771144333447,4e-05,70520.0,70505.0,0.02337526]
[1771144333647,4e-05,70520.0,70506.0,0.02337526]
[1771144333847,4e-05,70520.0,70512.0,0.07090897]
[1771144334255,4e-05,70520.0,70512.0,0.0710389]
[1771144334457,4e-05,70520.0,70513.0,0.07090889]
[1771144334884,4e-05,70520.0,70512.0,0.00012993]
[1771144335211,4e-05,70520.0,70514.0,0.28362992]
[1771144335450,4e-05,70520.0,70518.0,0.07090318]
[1771144335596,0.02296963,70530.0,70513.0,0.02337526]
[1771144335801,0.0001713,70530.0,70523.0,0.07089871]
[1771144336030,0.0001713,70530.0,70517.0,0.02337526]
[1771144336375,0.0001713,70530.0,70520.0,0.47471937]
[1771144336582,0.0001713,70530.0,70526.0,0.07089516]
[1771144336785,0.0001713,70530.0,70525.0,0.07089612]
[1771144337029,0.0001713,70530.0,70524.0,0.07089695]
[1771144337497,4e-05,70540.0,70523.0,0.02337526]
[1771144337662,4e-05,70540.0,70526.0,0.02337526]
[1771144338031,4e-05,70540.0,70534.0,0.07088688]
[1771144338178,4e-05,70540.0,70531.0,0.283561]
[1771144338386,4e-05,70540.0,70536.0,0.07088551]
[1771144338588,4e-05,70540.0,70532.0,0.339]
[1771144338793,4e-05,70540.0,70534.0,0.07088703]
[1771144339010,4e-05,70540.0,70535.0,0.07088658]
[1771144339850,4e-05,70540.0,70532.0,0.40988946]
[1771144340035,4e-05,70540.0,70532.0,0.339]
[1771144340275,0.07088478,70537.0,70520.0,4e-05]
[1771144340489,0.21018515,70521.0,70509.0,0.07828]
[1771144340694,0.21018515,70521.0,70510.0,0.00016993]
[1771144340904,0.28361094,70530.0,70510.0,0.00016993]
[1771144340905,4e-05,70530.0,70512.0,0.02337526]
[1771144341135,4e-05,70540.0,70520.0,4e-05]
[1771144341343,4e-05,70540.0,70500.0,0.47546783]
[1771144341344,4e-05,70540.0,70500.0,4e-05]
[1771144341345,0.30390445,70501.0,70500.0,4e-05]